bitfinex/quotes_SOLUSD_20220113
["timestamp","ask_amount","ask_price","bid_price","bid_amount"]
[1642064747079,23.0388,151.3,151.23,36.02010032]
[1642064747280,35.6001,151.3,151.23,33.37610032]
[1642064747483,35.8501,151.3,151.23,33.37610032]
[1642064747881,42.5501,151.3,151.23,33.37610032]
[1642064748281,42.5501,151.3,151.23,9.7342]
[1642064749182,35.8501,151.3,151.23,9.7342]
[1642064751188,35.6001,151.3,151.23,9.7342]
[1642064751987,32.9561,151.3,151.23,9.7342]
[1642064753890,33.2061,151.3,151.23,9.7342]
[1642064755293,35.8501,151.3,151.23,9.7342]
[1642064756193,33.2061,151.3,151.23,9.7342]
[1642064760697,64.53163606,151.3,151.23,9.7342]
[1642064761796,64.53163606,151.3,151.22,49.2161232]
[1642064763197,33.2061,151.3,151.22,49.2161232]
[1642064764000,33.2061,151.3,151.22,59.1331232]
[1642064764200,2.644,151.32,151.22,68.6331232]
[1642064764399,75.0171,151.33,151.23,2.644]
[1642064764598,75.0171,151.33,151.23,12.394]
[1642064764798,75.0171,151.33,151.23,12.214]
[1642064765297,84.932,151.33,151.26,9.9142]
[1642064765499,85.182,151.33,151.25,27.87593694]
[1642064765698,84.932,151.33,151.25,27.87593694]
[1642064766699,84.932,151.33,151.25,30.51793694]
[1642064767099,85.182,151.33,151.25,30.51793694]
[1642064767301,85.182,151.33,151.25,40.43273694]
[1642064767923,9.9149,151.33,151.25,37.79073694]
[1642064768124,9.9149,151.33,151.26,2.642]
[1642064768323,9.9149,151.33,151.25,40.43273694]
[1642064768525,9.9149,151.33,151.25,37.79073694]
[1642064769026,9.9149,151.33,151.25,39.67682996]
[1642064769223,10.1649,151.33,151.25,39.67682996]
[1642064770724,22.5906,151.32,151.25,39.67682996]
[1642064771126,22.8406,151.32,151.25,39.67682996]
[1642064773829,0.25,151.32,151.25,39.67682996]
[1642064774033,12.8089,151.33,151.25,39.67682996]
[1642064774229,10.1649,151.33,151.25,39.67682996]
[1642064774429,0.25,151.33,151.25,39.67682996]
[1642064775130,27.4147,151.35,151.25,39.67682996]
[1642064775639,27.4147,151.35,151.25,49.66612996]
[1642064776241,9.9143,151.34,151.25,49.66612996]
[1642064776440,2.642,151.33,151.25,49.66612996]
[1642064776845,2.892,151.33,151.25,49.66612996]
[1642064778450,2.642,151.33,151.25,49.66612996]
[1642064778651,26.2941,151.33,151.25,49.66612996]
[1642064778848,23.6521,151.33,151.25,49.66612996]
[1642064779075,33.5672,151.33,151.25,49.66612996]
[1642064779686,33.8172,151.33,151.25,49.66612996]
[1642064780176,23.9021,151.33,151.25,49.66612996]
[1642064781581,23.9021,151.33,151.26,1.88609302]
[1642064781778,23.9021,151.33,151.26,11.80019302]
[1642064783379,23.9021,151.33,151.26,9.9141]
[1642064783580,26.5441,151.33,151.26,9.9141]
[1642064784684,26.5441,151.33,151.26,9.4141]
[1642064785184,26.5441,151.33,151.26,11.30019302]
[1642064785990,26.5441,151.33,151.26,9.4141]
[1642064791296,55.56854923,151.33,151.26,9.4141]
[1642064792901,26.5441,151.33,151.26,9.4141]
[1642064793799,26.2941,151.33,151.26,9.4141]
[1642064794000,42.63757995,151.36,151.26,87.9661]
[1642064794199,22.9281,151.35,151.26,89.0530143]
[1642064794398,22.9281,151.35,151.26,88.8030143]
[1642064794597,22.9281,151.35,151.26,89.0530143]
[1642064795499,22.9281,151.35,151.26,90.93910732]
[1642064795900,91.80388694,151.37,151.26,90.93910732]
[1642064796101,79.24948694,151.37,151.27,24.4102]
[1642064796301,1.76458694,151.38,151.3,9.9112]
[1642064796603,1.76458694,151.38,151.3,19.4112]
[1642064796802,1.76458694,151.38,151.3,48.53636032]
[1642064797200,60.90137969,151.39,151.3,48.53636032]
[1642064797904,60.90137969,151.39,151.3,20.4981143]
[1642064798102,60.90137969,151.39,151.3,9.5]
[1642064798304,2.642,151.38,151.3,9.5]
[1642064798501,9.9136,151.36,151.3,9.5]
[1642064798902,26.59956379,151.35,151.3,9.5]
[1642064799201,26.84956379,151.35,151.3,9.5]
[1642064800203,36.76346379,151.35,151.3,9.5]
[1642064801004,26.84956379,151.35,151.3,9.5]
[1642064802504,36.76346379,151.35,151.3,9.5]
[1642064802908,39.40546379,151.35,151.3,9.5]
[1642064803707,36.76346379,151.35,151.3,9.5]
[1642064806937,42.01946379,151.35,151.3,9.5]
[1642064807339,42.01946379,151.35,151.26,2.642]
[1642064807537,26.1962,151.34,151.25,1.88609302]
[1642064807737,9.9169,151.31,151.25,1.88609302]
[1642064807939,18.3579,151.31,151.25,1.88609302]
[1642064808141,18.6079,151.31,151.25,1.88609302]
[1642064808339,24.83572747,151.3,151.25,1.88609302]
[1642064808540,25.08572747,151.3,151.25,1.88609302]
[1642064808741,35.00292747,151.3,151.23,25.58799302]
[1642064809342,35.00292747,151.3,151.23,1.88609302]
[1642064809542,23.3468,151.29,151.23,1.88609302]
[1642064809740,33.2651,151.29,151.23,1.88609302]
[1642064809940,33.5151,151.29,151.22,11.38609302]
[1642064810342,33.5151,151.29,151.22,12.47300732]
[1642064810745,23.5968,151.29,151.22,11.38609302]
[1642064810941,23.5968,151.29,151.22,21.30309302]
[1642064811143,23.5968,151.29,151.22,19.417]
[1642064811543,23.5968,151.29,151.22,20.5039143]
[1642064811843,0.25,151.29,151.22,23.3979143]
[1642064812041,27.0688,151.32,151.22,23.3979143]
[1642064812543,29.47585413,151.31,151.22,23.3979143]
[1642064812844,24.1938,151.3,151.22,13.4809143]
[1642064813049,24.4438,151.3,151.22,13.4809143]
[1642064813246,24.4438,151.3,151.22,3.9809143]
[1642064813943,34.3614,151.3,151.22,1.3369143]
[1642064815344,34.3614,151.3,151.22,1.0869143]
[1642064815545,34.3614,151.3,151.21,4.53009302]
[1642064815748,9.9204,151.25,151.21,4.53009302]
[1642064816145,10.1704,151.25,151.21,2.644]
[1642064816346,17.3494,151.25,151.21,2.644]
[1642064817146,42.29264721,151.25,151.2,0.33056003]
[1642064818749,17.3494,151.25,151.2,0.33056003]
[1642064818948,0.25,151.25,151.2,0.33056003]
[1642064819348,10.1695,151.27,151.2,0.33056003]
[1642064819749,55.5404966,151.26,151.2,0.33056003]
[1642064820150,65.4602966,151.26,151.2,0.33056003]
[1642064820352,2.644,151.25,151.2,0.33056003]
[1642064821253,12.5644,151.25,151.16,9.867]
[1642064821453,12.5644,151.25,151.15,1.88609302]
[1642064821752,12.8144,151.25,151.15,1.88609302]
[1642064822152,24.8888,151.24,151.15,1.88609302]
[1642064822353,2.645,151.23,151.15,1.88609302]
[1642064822556,2.895,151.23,151.14,4.53009302]
[1642064823153,9.9225,151.21,151.14,2.644]
[1642064823554,2.645,151.2,151.14,2.644]
[1642064823751,2.645,151.2,151.12,1.88609302]
[1642064823952,26.2353,151.2,151.1,4.53209302]
[1642064824153,23.5903,151.2,151.1,4.53209302]
[1642064824453,30.29361355,151.19,151.1,4.53209302]
[1642064824656,30.29361355,151.19,151.1,4.78209302]
[1642064824853,30.54361355,151.19,151.1,4.78209302]
[1642064825053,9.9248,151.18,151.1,4.78209302]
[1642064825353,9.9248,151.18,151.1,2.896]
[1642064825555,10.1748,151.18,151.1,2.896]
[1642064825955,10.1748,151.18,151.1,2.646]
[1642064826955,33.7767,151.18,151.1,2.646]
[1642064827756,33.7767,151.18,151.09,114.9711]
[1642064827959,33.7767,151.18,151.09,112.3251]
[1642064828557,33.7767,151.18,151.09,112.5751]
[1642064831362,23.8519,151.18,151.09,112.5951]
[1642064832561,23.8519,151.18,151.09,112.5751]
[1642064834762,33.7765,151.18,151.09,112.5751]
[1642064834962,23.6019,151.18,151.09,112.6451]
[1642064835161,23.6019,151.18,151.1,2.646]
[1642064835362,23.6019,151.18,151.11,9.9236]
[1642064837562,23.8519,151.18,151.11,9.9236]
[1642064838263,23.6019,151.18,151.11,9.9236]
[1642064838991,23.6019,151.18,151.12,24.87807188]
[1642064839164,23.6019,151.18,151.13,9.9227]
[1642064842173,33.98498576,151.2,151.13,9.9227]
[1642064842373,34.23498576,151.2,151.13,9.9227]
[1642064843275,0.25,151.2,151.13,9.9227]
[1642064843474,50.1616,151.21,151.13,9.9227]
[1642064844276,77.6619264,151.21,151.13,9.9227]
[1642064845178,87.5847264,151.21,151.13,9.9227]
[1642064847813,77.6619264,151.21,151.13,9.9227]
[1642064849911,75.0159264,151.21,151.13,9.9227]
[1642064851016,75.0159264,151.21,151.14,1.88609302]
[1642064851611,47.5156,151.21,151.14,1.88609302]
[1642064851817,22.8548,151.21,151.14,11.80829302]
[1642064852516,75.2976,151.22,151.14,11.80829302]
[1642064852815,28.23040735,151.21,151.14,11.80829302]
[1642064853018,28.23040735,151.21,151.14,12.05829302]
[1642064853216,75.2976,151.22,151.14,12.05829302]
[1642064853716,75.2976,151.22,151.14,11.80829302]
[1642064854116,75.2976,151.22,151.15,1.88609302]
[1642064854319,100.74686898,151.22,151.15,1.88609302]
[1642064854715,75.5476,151.22,151.15,11.80749302]
[1642064858722,23.5806,151.21,151.15,11.80749302]
[1642064858922,26.2256,151.21,151.15,11.80749302]
[1642064859231,26.4756,151.21,151.15,11.80749302]
[1642064859424,26.4756,151.21,151.15,9.9214]
[1642064862631,23.5806,151.21,151.15,9.9214]
[1642064863528,23.5806,151.21,151.15,20.0238]
[1642064864129,23.8306,151.21,151.15,20.0238]
[1642064864534,2.645,151.24,151.15,34.05489302]
[1642064864730,2.645,151.25,151.15,34.56489302]
[1642064864931,27.70388694,151.26,151.16,23.0736]
[1642064865131,27.70388694,151.26,151.2,9.9178]
[1642064865357,27.70388694,151.26,151.21,30.00685621]
[1642064865555,25.05888694,151.26,151.21,30.00685621]
[1642064866059,25.30888694,151.26,151.21,30.00685621]
[1642064866458,23.2943,151.26,151.21,30.00685621]
[1642064868960,23.5443,151.26,151.21,30.00685621]
[1642064871961,23.5443,151.26,151.19,9.9189]
[1642064871962,23.5443,151.26,151.19,20.0752]
[1642064872561,33.464,151.26,151.19,10.1563]
[1642064872966,60.00140758,151.26,151.19,10.1563]
[1642064876473,33.464,151.26,151.19,10.1563]
[1642064877074,33.464,151.26,151.19,20.0753]
[1642064877273,23.2943,151.26,151.19,20.0753]
[1642064877479,23.2943,151.26,151.19,20.3253]
[1642064877874,23.2943,151.26,151.19,26.3253]
[1642064878075,23.2943,151.26,151.19,29.8253]
[1642064878476,23.5443,151.26,151.19,29.8253]
[1642064878977,23.5443,151.26,151.19,35.8253]
[1642064879279,23.5443,151.26,151.19,29.8253]
[1642064879679,23.5443,151.26,151.19,30.901323]
[1642064879878,23.5443,151.26,151.19,29.8253]
[1642064880377,0.25,151.26,151.19,29.8253]
[1642064880578,79.1273,151.28,151.22,9.9167]
[1642064884283,78.8773,151.28,151.22,9.9167]
[1642064884485,2.645,151.3,151.22,10.1667]
[1642064884685,35.5816,151.31,151.22,10.1667]
[1642064885083,35.5816,151.31,151.23,28.94971927]
[1642064885385,35.5816,151.31,151.23,38.86601927]
[1642064885585,35.8316,151.31,151.23,38.86601927]
[1642064886184,35.8316,151.31,151.23,9.9163]
[1642064887486,25.9151,151.31,151.23,9.9163]
[1642064888985,35.8317,151.31,151.23,9.9163]
[1642064889485,35.8317,151.31,151.21,9.9172]
[1642064889884,35.8317,151.31,151.2,28.13749302]
[1642064890085,35.8317,151.31,151.2,37.88749302]
[1642064890286,35.8317,151.31,151.2,63.56295191]
[1642064891188,35.8317,151.31,151.2,73.48105191]
[1642064894795,35.8317,151.31,151.2,73.50105191]
[1642064896003,35.8317,151.31,151.2,75.38714493]
[1642064896199,35.8317,151.31,151.2,141.28714493]
[1642064896799,35.5817,151.31,151.2,141.28714493]
[1642064898105,35.8317,151.31,151.2,141.28714493]
[1642064900424,35.8317,151.31,151.2,142.36316793]
[1642064901324,35.8317,151.31,151.2,75.38714493]
[1642064901525,35.8317,151.31,151.2,65.88714493]
[1642064901728,43.4347,151.31,151.2,65.88714493]
[1642064902424,43.4347,151.31,151.2,75.38714493]
[1642064902825,43.4347,151.31,151.2,73.50105191]
[1642064903024,45.19928694,151.31,151.2,73.50105191]
[1642064903427,37.59628694,151.31,151.2,73.50105191]
[1642064903826,37.99604694,151.31,151.2,75.38714493]
[1642064904028,28.07944694,151.31,151.2,75.64714493]
[1642064904227,4.80834694,151.31,151.2,75.64714493]
[1642064904425,2.16434694,151.31,151.21,1.076023]
[1642064904627,0.39976,151.31,151.26,9.9133]
[1642064905226,0.39976,151.31,151.27,31.51683046]
[1642064905831,0.39976,151.31,151.27,31.76683046]
[1642064906227,0.39976,151.31,151.27,41.68043046]
[1642064906426,0.39976,151.31,151.27,41.43043046]
[1642064907234,0.39976,151.31,151.27,41.68043046]
[1642064907436,0.39976,151.31,151.27,31.51683046]
[1642064907836,0.39976,151.31,151.26,2.642]
[1642064908836,0.39976,151.31,151.26,31.48096541]
[1642064909638,0.39976,151.31,151.26,31.73096541]
[1642064909937,0.39976,151.31,151.26,29.08896541]
[1642064918180,0.39976,151.31,151.26,39.00336541]
[1642064918478,0.39976,151.31,151.26,40.07938841]
[1642064918681,0.39976,151.31,151.26,39.00336541]
[1642064919782,0.39976,151.31,151.26,38.75336541]
[1642064922181,0.39976,151.31,151.26,9.9144]
[1642064922983,0.39976,151.31,151.26,10.1644]
[1642064923182,0.39976,151.31,151.27,31.2252928]
[1642064923384,0.39976,151.31,151.26,10.1644]
[1642064923885,0.39976,151.31,151.26,9.9144]
[1642064924082,0.39976,151.31,151.25,9.5]
[1642064924284,0.39976,151.31,151.25,9.75]
[1642064925184,0.39976,151.31,151.25,19.6649]
[1642064926386,0.39976,151.31,151.25,22.3089]
[1642064926884,30.38917067,151.31,151.25,22.3089]
[1642064927086,30.63917067,151.31,151.25,22.3089]
[1642064927584,2.644,151.3,151.25,2.644]
[1642064927784,30.548,151.3,151.25,2.644]
[1642064927987,30.798,151.3,151.23,11.75319302]
[1642064928385,30.798,151.3,151.23,9.8671]
[1642064929086,40.7156,151.3,151.23,9.8671]
[1642064932789,40.7156,151.3,151.2,4.53009302]
[1642064933190,40.7156,151.3,151.21,1.88609302]
[1642064933589,40.4656,151.3,151.21,1.88609302]
[1642064933990,1.76458694,151.28,151.2,34.36253715]
[1642064934189,12.5635,151.27,151.2,31.71853715]
[1642064934990,12.8135,151.27,151.2,31.71853715]
[1642064935192,10.1695,151.27,151.2,31.71853715]
[1642064935792,10.1695,151.27,151.2,31.73853715]
[1642064936190,10.1695,151.27,151.2,0.02]
[1642064936397,26.145,151.26,151.2,0.02]
[1642064936694,36.3152,151.26,151.2,0.02]
[1642064937194,33.6712,151.26,151.2,0.02]
[1642064939297,33.4212,151.26,151.2,0.02]
[1642064939694,41.16530507,151.25,151.2,0.02]
[1642064939895,43.80930507,151.25,151.2,0.02]
[1642064940498,23.0382,151.24,151.2,0.02]
[1642064942094,23.2882,151.24,151.2,0.02]
[1642064942695,23.0382,151.24,151.2,0.02]
[1642064943298,83.0766,151.28,151.2,0.02]
[1642064943499,24.0662,151.27,151.2,0.02]
[1642064944327,24.0662,151.27,151.2,9.9383]
[1642064944531,24.3162,151.27,151.2,9.9383]
[1642064944727,24.3162,151.27,151.2,2.664]
[1642064944928,34.2357,151.27,151.2,2.664]
[1642064945735,34.2357,151.27,151.2,0.02]
[1642064946132,24.3162,151.27,151.2,0.02]
[1642064946832,2.644,151.26,151.2,0.02]
[1642064947039,2.894,151.26,151.2,0.02]
[1642064947437,0.25,151.26,151.2,0.02]
[1642064948337,24.3162,151.27,151.2,9.9383]
[1642064948535,0.25,151.27,151.2,9.9383]
[1642064948736,75.8013,151.28,151.2,9.9383]
[1642064948937,73.4073,151.28,151.2,9.9383]
[1642064949137,73.4073,151.28,151.2,0.02]
[1642064949337,22.591,151.27,151.2,0.02]
[1642064949539,25.485,151.27,151.2,0.02]
[1642064951739,25.485,151.27,151.2,9.9383]
[1642064952339,25.485,151.27,151.2,0.02]
[1642064952540,35.4044,151.27,151.2,0.02]
[1642064957742,35.80416,151.27,151.2,0.02]
[1642064958951,109.16716,151.27,151.2,0.02]
[1642064960448,110.93174694,151.27,151.2,0.02]
[1642064961551,45.03174694,151.27,151.2,0.02]
[1642064962152,37.56874694,151.27,151.2,0.02]
[1642064966783,1.76458694,151.26,151.2,0.02]
[1642064966983,9.9218,151.24,151.2,0.02]
[1642064967383,24.9396,151.23,151.2,0.02]
[1642064967586,25.1896,151.23,151.2,0.02]
[1642064968985,0.25,151.23,151.2,0.02]
[1642064969184,0.25,151.23,151.21,6.06439993]
[1642064969386,34.1993,151.26,151.21,6.06439993]
[1642064969588,24.279,151.26,151.21,6.06439993]
[1642064969987,4.80834694,151.27,151.21,6.06439993]
[1642064970189,4.80834694,151.27,151.21,8.70839993]
[1642064970190,0.39976,151.27,151.21,8.70839993]
[1642064971991,0.39976,151.27,151.21,8.95839993]
[1642064972189,0.39976,151.27,151.21,18.87599993]
[1642064974094,0.39976,151.27,151.21,43.44819993]
[1642064974894,0.39976,151.27,151.22,9.5]
[1642064975093,0.39976,151.27,151.24,9.9145]
[1642064975296,0.39976,151.27,151.25,5.67619996]
[1642064975497,0.39976,151.27,151.25,6.06439993]
[1642064975710,0.39976,151.27,151.26,26.32853115]
[1642064976194,0.39976,151.27,151.26,36.24253115]
[1642064977497,0.39976,151.27,151.26,36.49253115]
[1642064982704,6e-05,151.27,151.26,10.164]
[1642064985208,6e-05,151.27,151.25,15.56439993]
[1642064985405,6e-05,151.27,151.25,6.06439993]
[1642064985807,6e-05,151.27,151.25,29.76509993]
[1642064987210,6e-05,151.27,151.25,39.68009993]
[1642064987413,6e-05,151.27,151.25,49.43009993]
[1642064987610,6e-05,151.27,151.26,2.644]
[1642064987812,6e-05,151.27,151.25,52.07409993]
[1642064989341,6e-05,151.27,151.25,52.33409993]
[1642064989547,6e-05,151.27,151.25,58.07409993]
[1642064990141,6e-05,151.27,151.25,49.43009993]
[1642064991346,6e-05,151.27,151.25,52.07409993]
[1642064992546,6e-05,151.27,151.25,49.43009993]
[1642064993047,6e-05,151.27,151.25,49.18009993]
[1642064993247,6e-05,151.27,151.25,49.43009993]
[1642064996052,6e-05,151.27,151.25,55.43009993]
[1642064996358,6e-05,151.27,151.25,49.43009993]
[1642064996953,6e-05,151.27,151.25,55.43009993]
[1642064997451,6e-05,151.27,151.25,59.15909993]
[1642064997651,6e-05,151.27,151.25,59.40909993]
[1642064997852,6e-05,151.27,151.25,59.15909993]
[1642064998253,6e-05,151.27,151.25,59.40909993]
[1642064998958,6e-05,151.27,151.25,65.66909993]
[1642064999155,6e-05,151.27,151.25,68.31309993]
[1642065000655,6e-05,151.27,151.25,69.38912293]
[1642065001060,6e-05,151.27,151.25,68.31309993]
[1642065001256,6e-05,151.27,151.25,68.05309993]
[1642065001459,6e-05,151.27,151.25,62.05309993]
[1642065004063,6e-05,151.27,151.25,55.9887]
[1642065004860,6e-05,151.27,151.26,6.06439993]
[1642065005058,6e-05,151.27,151.26,25.72879993]
[1642065005458,6e-05,151.27,151.26,25.47879993]
[1642065020200,6e-05,151.27,151.26,26.55482293]
[1642065026000,6e-05,151.27,151.26,25.47879993]
[1642065026201,6e-05,151.27,151.26,26.55482293]
[1642065026602,6e-05,151.27,151.26,25.47879993]
[1642065027805,6e-05,151.27,151.26,26.55482293]
[1642065028503,6e-05,151.27,151.26,25.47879993]
[1642065030307,6e-05,151.27,151.26,26.55482293]
[1642065038417,6e-05,151.27,151.26,25.47879993]
[1642065042830,6e-05,151.27,151.26,15.56439993]
[1642065043024,6e-05,151.27,151.26,6.06439993]
[1642065050432,6e-05,151.27,151.25,34.592]
[1642065051435,6e-05,151.27,151.23,22.37781602]
[1642065051633,6e-05,151.27,151.23,21.55179302]
[1642065051835,6e-05,151.27,151.23,21.30179302]
[1642065052435,6e-05,151.27,151.23,22.37781602]
[1642065053238,6e-05,151.27,151.23,11.38609302]
[1642065054539,6e-05,151.27,151.23,12.46211602]
[1642065054738,6e-05,151.27,151.23,10.576023]
[1642065054945,6e-05,151.27,151.23,9.5]
[1642065055341,6e-05,151.27,151.23,19.4162]
[1642065056340,6e-05,151.27,151.23,9.5]
[1642065056571,6e-05,151.27,151.22,26.69019302]
[1642065056773,6e-05,151.27,151.22,1.88609302]
[1642065057571,9.91976,151.27,151.22,1.88609302]
[1642065057771,28.45183491,151.26,151.22,1.88609302]
[1642065057973,28.70183491,151.26,151.22,1.88609302]
[1642065058170,28.70183491,151.26,151.2,1.88609302]
[1642065058370,25.2736,151.25,151.2,1.88609302]
[1642065058570,22.8786,151.25,151.2,1.88609302]
[1642065059170,22.8786,151.25,151.18,9.5]
[1642065059370,32.7995,151.25,151.18,9.5]
[1642065062576,2.645,151.24,151.18,9.5]
[1642065062777,9.9229,151.23,151.18,9.5]
[1642065062977,10.1729,151.23,151.18,9.5]
[1642065065677,10.1729,151.23,151.16,92.9]
[1642065065879,9.9236,151.21,151.16,92.9]
[1642065066076,10.1736,151.21,151.16,92.9]
[1642065066279,30.68259628,151.2,151.16,92.9]
[1642065066477,30.93259628,151.2,151.16,92.9]
[1642065066677,0.25,151.2,151.16,92.9]
[1642065067677,1.67760188,151.22,151.16,92.9]
[1642065067876,24.31730188,151.22,151.16,92.9]
[1642065069876,34.24050188,151.22,151.16,92.9]
[1642065070679,34.24050188,151.22,151.14,9.5]
[1642065071478,24.31730188,151.22,151.14,10.57333805]
[1642065071980,24.31730188,151.22,151.14,9.5]
[1642065072383,24.31730188,151.22,151.14,19.422]
[1642065072581,34.24050188,151.22,151.14,9.5]
[1642065073280,2.645,151.21,151.14,9.5]
[1642065073481,2.895,151.21,151.14,9.5]
[1642065074284,12.8186,151.21,151.14,9.5]
[1642065075788,78.7186,151.21,151.14,9.5]
[1642065075986,78.7186,151.21,151.11,15.10443107]
[1642065076189,9.9269,151.17,151.11,11.38609302]
[1642065076386,2.646,151.16,151.11,9.5]
[1642065076591,2.896,151.16,151.11,9.5]
[1642065077190,12.8231,151.16,151.11,9.5]
[1642065080898,12.5731,151.16,151.11,9.5]
[1642065081797,9.9271,151.16,151.11,9.5]
[1642065082496,10.1771,151.16,151.11,9.5]
[1642065083223,2.646,151.15,151.11,9.5]
[1642065083623,2.896,151.15,151.11,9.5]
[1642065083827,2.646,151.15,151.11,9.5]
[1642065085627,0.25,151.15,151.11,9.5]
[1642065086029,26.1337,151.17,151.11,9.5]
[1642065086433,26.3837,151.17,151.11,9.5]
[1642065086931,56.40100275,151.17,151.11,9.5]
[1642065088233,66.32690275,151.17,151.11,9.5]
[1642065088935,66.07690275,151.17,151.11,9.5]
[1642065090334,66.32690275,151.17,151.11,9.5]
[1642065090832,63.68090275,151.17,151.11,9.5]
[1642065091040,2.646,151.16,151.11,9.5]
[1642065091447,2.896,151.16,151.11,9.5]
[1642065093044,2.646,151.16,151.11,9.5]
[1642065093642,63.43090275,151.17,151.11,9.5]
[1642065093843,33.4136,151.17,151.11,9.5]
[1642065095350,33.6636,151.17,151.11,9.5]
[1642065097650,23.7377,151.17,151.11,9.5]
[1642065102778,0.25,151.17,151.11,19.4241]
[1642065102979,37.1769,151.2,151.11,19.4241]
[1642065105179,12.8204,151.2,151.11,19.4241]
[1642065105880,12.8204,151.2,151.11,9.5]
[1642065106581,12.8204,151.2,151.11,33.8695]
[1642065109788,12.8204,151.2,151.11,9.5]
[1642065113895,14.58498694,151.2,151.11,9.5]
[1642065123709,14.33498694,151.2,151.11,9.5]
[1642065124809,12.5704,151.2,151.11,9.5]
[1642065125009,12.8204,151.2,151.11,9.5]
[1642065128344,12.8204,151.2,151.11,32.9399]
[1642065129043,12.5704,151.2,151.11,32.9399]
[1642065129243,1.76458694,151.21,151.12,2.646]
[1642065129445,1.76458694,151.21,151.13,9.5]
[1642065129645,1.76458694,151.21,151.14,2.646]
[1642065129843,1.76458694,151.21,151.15,9.5]
[1642065130044,1.76458694,151.21,151.16,32.0080179]
[1642065130243,1.76458694,151.24,151.17,9.5]
[1642065131660,25.04105503,151.27,151.17,9.5]
[1642065131844,27.68605503,151.27,151.17,9.5]
[1642065132248,9.9203,151.26,151.18,9.9196]
[1642065132445,33.8486,151.26,151.19,9.5]
[1642065132847,34.0986,151.26,151.19,9.5]
[1642065134246,2.645,151.25,151.19,9.5]
[1642065134647,2.895,151.25,151.19,9.5]
[1642065135447,0.25,151.25,151.19,9.5]
[1642065135647,34.0986,151.26,151.19,9.5]
[1642065141151,36.7436,151.26,151.19,9.5]
[1642065142951,6e-05,151.27,151.2,68.545]
[1642065143151,6e-05,151.27,151.21,9.5]
[1642065143353,6e-05,151.27,151.22,68.544]
[1642065143556,6e-05,151.27,151.23,75.4]
[1642065143754,6e-05,151.27,151.24,2.644]
[1642065143954,6e-05,151.27,151.25,9.5]
[1642065144154,6e-05,151.27,151.26,6.06439993]
[1642065146155,6e-05,151.27,151.24,24.0513]
[1642065146584,6e-05,151.27,151.25,3.03219997]
[1642065146756,6e-05,151.27,151.25,6.06439993]
[1642065156096,6e-05,151.27,151.23,2.644]
[1642065162609,6e-05,151.27,151.22,35.0615]
[1642065162804,6e-05,151.27,151.22,35.3115]
[1642065165512,6e-05,151.27,151.22,34.8115]
[1642065171014,6e-05,151.27,151.23,9.5]
[1642065171212,6e-05,151.27,151.25,9.9146]
[1642065172613,6e-05,151.27,151.26,6.06439993]
[1642065176951,6e-05,151.27,151.25,9.915]
[1642065177145,6e-05,151.27,151.26,3.03219996]
[1642065178148,6e-05,151.27,151.26,6.06439993]
[1642065183149,6e-05,151.27,151.23,9.5]
[1642065183352,6e-05,151.27,151.23,9.75]
[1642065184151,6e-05,151.27,151.25,9.915]
[1642065184551,6e-05,151.27,151.26,3.03219996]
[1642065184754,6e-05,151.27,151.26,6.06439993]
[1642065186355,6e-05,151.27,151.26,15.97859993]
[1642065196968,6e-05,151.27,151.26,9.9142]
[1642065197970,6e-05,151.27,151.26,15.97859993]
[1642065198674,6e-05,151.27,151.26,92.44808776]
[1642065198869,1.76458694,151.32,151.26,98.95808776]
[1642065199270,1.76458694,151.33,151.26,98.95808776]
[1642065199671,1.76458694,151.33,151.28,65.9]
[1642065199874,1.76458694,151.33,151.3,75.8107]
[1642065200273,31.88601396,151.37,151.3,75.8107]